fUST/lending_fUST_20260113
["ID","MTS","AMOUNT","RATE_DAILY","PERIOD"]
[401480071,1768258240802,-1000.0,0.00013821,2]
[401480073,1768258240811,-1000.0,0.00013821,2]
[401480075,1768258240820,-1000.0,0.00013821,2]
[401480077,1768258240830,-1000.0,0.00013821,2]
[401480080,1768258240840,-1000.0,0.00013821,2]
[401480082,1768258240849,-798.59280651,0.00013821,2]
[401480083,1768258240860,-500.0,0.00013821,2]
[401480085,1768258240869,-1000.0,0.00013821,2]
[401480087,1768258240879,-1000.0,0.00013821,2]
[401480089,1768258240888,-1000.0,0.00013821,2]
[401480092,1768258240897,-1000.0,0.00013821,2]
[401480094,1768258240906,-1000.0,0.00013821,2]
[401480095,1768258240915,-1000.0,0.00013821,2]
[401480097,1768258240924,-1000.0,0.00013821,2]
[401480099,1768258240934,-958.38483251,0.00013821,2]
[401480102,1768258240943,-1000.0,0.00013821,2]
[401480104,1768258240953,-1000.0,0.00013821,2]
[401480106,1768258240967,-1000.0,0.00013821,2]
[401480108,1768258240976,-1000.0,0.00013821,2]
[401480110,1768258240985,-680.33880903,0.00013821,2]
[401480112,1768258240995,-1000.0,0.00013821,2]
[401480114,1768258241005,-1000.0,0.00013821,2]
[401480116,1768258241014,-1000.0,0.00013821,2]
[401480118,1768258241022,-1000.0,0.00013821,2]
[401480120,1768258241032,-332.40668052,0.00013821,2]
[401480121,1768258241040,-1000.0,0.00013821,2]
[401480123,1768258241049,-1000.0,0.00013821,2]
[401480125,1768258241058,-2833.03899149,0.00013966,2]
[401480127,1768258241067,-294.20360383,0.00013973,2]
[401480129,1768258241077,-420.0,0.00014113,2]
[401480131,1768258241087,-351.04270363,0.00014147,2]
[401480133,1768258241096,-1680.0,0.00014154,2]
[401480135,1768258241105,-600.0,0.00014221,2]
[401480137,1768258241114,-1017.77857831,0.00014247,2]
[401480139,1768258241123,-1000.0,0.00014247,2]
[401480141,1768258241132,-1000.0,0.00014247,2]
[401480143,1768258241141,-1000.0,0.00014247,2]
[401480145,1768258241150,-1000.0,0.00014247,2]
[401480147,1768258241159,-1000.0,0.00014247,2]
[401480149,1768258241168,-999.83703447,0.00014247,2]
[401480151,1768258241178,-1000.0,0.00014247,2]
[401480153,1768258241187,-1002.56553603,0.00014247,2]
[401480155,1768258241196,-1000.0,0.00014247,2]
[401480157,1768258241204,-276.29994154,0.00014247,2]
[401480159,1768258241213,-1000.512985,0.00014247,2]
[401480161,1768258241222,-1000.0,0.00014247,2]
[401480163,1768258241231,-353.02410941,0.00014247,2]
[401480165,1768258241240,-1000.0,0.00014247,2]
[401480167,1768258241249,-1000.0,0.00014247,2]
[401480169,1768258241258,-875.76793412,0.00014247,2]
[401480171,1768258241267,-500.0,0.00014247,2]
[401480173,1768258241276,-1029.61129365,0.00014247,2]
[401480175,1768258241285,-1000.0,0.00014247,2]
[401480177,1768258241294,-1000.0,0.00014247,2]
[401480179,1768258241303,-1000.0,0.00014247,2]
[401480181,1768258241311,-1000.0,0.00014247,2]
[401480183,1768258241320,-581.34216933,0.00014247,2]
[401480185,1768258241329,-1000.0,0.00014247,2]
[401480187,1768258241338,-1000.0,0.00014247,2]
[401480188,1768258241347,-1002.38932755,0.00014247,2]
[401480190,1768258241356,-501.52224721,0.00014247,2]
[401480192,1768258241365,-1000.0,0.00014247,2]
[401480195,1768258241375,-1000.0,0.00014247,2]
[401480196,1768258241384,-1138.41119879,0.00014247,2]
[401480199,1768258241393,-1000.0,0.00014247,2]
[401480201,1768258241402,-250.0,0.00014247,2]
[401480203,1768258241411,-1000.0,0.00014247,2]
[401480205,1768258241420,-1000.0,0.00014247,2]
[401480206,1768258241430,-1000.0,0.00014247,2]
[401480208,1768258241439,-1000.0,0.00014247,2]
[401480210,1768258241447,-1000.0,0.00014247,2]
[401480212,1768258241456,-1000.0,0.00014247,2]
[401480214,1768258241465,-1000.0,0.00014247,2]
[401480216,1768258241474,-1014.57441802,0.00014247,2]
[401480218,1768258241483,-1000.0,0.00014247,2]
[401480220,1768258241492,-1000.0,0.00014247,2]
[401480222,1768258241501,-1000.0,0.00014247,2]
[401480224,1768258241510,-1000.0,0.00014247,2]
[401480226,1768258241519,-1000.0,0.00014247,2]
[401480228,1768258241528,-1000.0,0.00014247,2]
[401480230,1768258241538,-1000.0,0.00014247,2]
[401480232,1768258241547,-646.68328603,0.00014247,2]
[401480234,1768258241556,-346.05518507,0.00014247,2]
[401480236,1768258241565,-1000.0,0.00014247,2]
[401480238,1768258241574,-1000.0,0.00014247,2]
[401480240,1768258241583,-1006.00253074,0.00014247,2]
[401480242,1768258241592,-1000.0,0.00014247,2]
[401480244,1768258241601,-1000.0,0.00014247,2]
[401480246,1768258241610,-1000.0,0.00014247,2]
[401480247,1768258241619,-1000.0,0.00014247,2]
[401480248,1768258241627,-1000.0,0.00014247,2]
[401480249,1768258241636,-500.80134157,0.00014368,2]
[401480250,1768258241645,-423.32811707,0.00014368,2]
[401480251,1768258241653,-1500.0,0.00014368,2]
[401480252,1768258241663,-1177.20505665,0.00014368,2]
[401480253,1768258241671,-401.64301006,0.00014368,2]
[401480254,1768258241680,-1485.3091038,0.00014368,2]
[401480255,1768258241689,-763.96834089,0.00014368,2]
[401480256,1768258241698,-1500.0,0.00014368,2]
[401480257,1768258241707,-1500.0,0.00014368,2]
[401480258,1768258241715,-1000.0,0.00014368,2]
[401480259,1768258241725,-1500.0,0.00014368,2]
[401480260,1768258241734,-1500.0,0.00014368,2]
[401480261,1768258241743,-1500.0,0.00014368,2]
[401480262,1768258241751,-1500.0,0.00014368,2]
[401480263,1768258241760,-1121.35319303,0.00014368,2]
[401480264,1768258241769,-1500.0,0.00014368,2]
[401480265,1768258241778,-504.59320272,0.00014368,2]
[401480266,1768258241787,-1500.0,0.00014368,2]
[401480267,1768258241796,-1603.18109463,0.00014368,2]
[401480268,1768258241805,-500.0,0.00014368,2]
[401480269,1768258241814,-1502.33157316,0.00014368,2]
[401480270,1768258241823,-1500.0,0.00014368,2]
[401480271,1768258241831,-1500.0,0.00014368,2]
[401480272,1768258241841,-1500.0,0.00014368,2]
[401480273,1768258241849,-1500.0,0.00014368,2]
[401480274,1768258241858,-1500.0,0.00014368,2]
[401480275,1768258241867,-1500.0,0.00014368,2]
[401480276,1768258241875,-1500.0,0.00014368,2]
[401480277,1768258241884,-1500.0,0.00014368,2]
[401480278,1768258241893,-1000.0,0.00014368,2]
[401480279,1768258241902,-1500.0,0.00014368,2]
[401480280,1768258241911,-5000.0,0.0001451,2]
[401480281,1768258241920,-720.0,0.00014551,2]
[401480282,1768258241929,-100000.0,0.0001459,2]
[401480284,1768258241938,-500.0,0.00014767,2]
[401480286,1768258241947,-500.0,0.00014767,2]
[401480289,1768258241957,-500.0,0.00014767,2]
[401480290,1768258241970,-500.0,0.00014767,2]
[401480293,1768258241979,-500.0,0.00014767,2]
[401480294,1768258241988,-500.0,0.00014767,2]
[401480297,1768258241997,-500.0,0.00014767,2]
[401480298,1768258242009,-500.0,0.00014767,2]
[401480300,1768258242018,-500.0,0.00014767,2]
[401480303,1768258242027,-500.0,0.00014767,2]
[401480305,1768258242039,-500.0,0.00014767,2]
[401480307,1768258242048,-500.0,0.00014767,2]
[401480308,1768258242057,-364.86992356,0.00014767,2]
[401480310,1768258242067,-900.0,0.00014768,2]
[401480313,1768258242076,-158.4999436,0.00014795,2]
[401480315,1768258242085,-1000.0,0.00014795,2]
[401480317,1768258242094,-575.12204215,0.00014795,2]
[401480319,1768258242103,-1000.0,0.00014795,2]
[401480320,1768258242113,-1500.0,0.00014795,2]
[401480322,1768258242122,-1121.58832465,0.00014795,2]
[401480324,1768258242133,-500.0,0.00014795,2]
[401480326,1768258242142,-1500.0,0.00014795,2]
[401480328,1768258242152,-1500.0,0.00014795,2]
[401480330,1768258242160,-1500.0,0.00014795,2]
[401480333,1768258242170,-1500.0,0.00014795,2]
[401480334,1768258242179,-1500.0,0.00014795,2]
[401480337,1768258242188,-500.0,0.00014795,2]
[401480338,1768258242197,-1500.0,0.00014795,2]
[401480340,1768258242207,-1500.0,0.00014795,2]
[401480343,1768258242215,-1500.0,0.00014795,2]
[401480344,1768258242225,-1500.0,0.00014795,2]
[401480346,1768258242234,-675.05887209,0.00014795,2]
[401480348,1768258242243,-1500.0,0.00014795,2]
[401480350,1768258242252,-1500.0,0.00014795,2]
[401480352,1768258242262,-1500.0,0.00014795,2]
[401480354,1768258242271,-710.84440634,0.00014795,2]
[401480356,1768258242280,-1500.0,0.00014795,2]
[401480359,1768258242290,-1500.0,0.00014795,2]
[401480360,1768258242299,-1500.0,0.00014795,2]
[401480363,1768258242308,-1500.0,0.00014795,2]
[401480365,1768258242317,-1500.0,0.00014795,2]
[401480366,1768258242326,-500.0,0.00014795,2]
[401480369,1768258242336,-1500.0,0.00014795,2]
[401480370,1768258242345,-1500.0,0.00014795,2]
[401480372,1768258242355,-1500.0,0.00014795,2]
[401480375,1768258242364,-1500.0,0.00014795,2]
[401480376,1768258242373,-1500.0,0.00014795,2]
[401480379,1768258242382,-151.48350527,0.000149,2]
[401480380,1768258242392,-151.48350527,0.000149,2]
[401480383,1768258242402,-250.0,0.00014913,2]
[401480384,1768258242411,-155.72124395,0.00014916,2]
[401480386,1768258242420,-1466.62413338,0.00014916,2]
[401480388,1768258242430,-2000.0,0.00014916,2]
[401480390,1768258242439,-2000.0,0.00014916,2]
[401480392,1768258242448,-2000.0,0.00014916,2]
[401480394,1768258242458,-2000.0,0.00014916,2]
[401480397,1768258242468,-500.0,0.00014916,2]
[401480399,1768258242477,-2000.0,0.00014916,2]
[401480401,1768258242486,-2000.0,0.00014916,2]
[401480402,1768258242495,-500.0,0.00014916,2]
[401480404,1768258242504,-500.0,0.00014916,2]
[401480406,1768258242513,-2000.0,0.00014916,2]
[401480408,1768258242534,-2000.0,0.00014916,2]
[401480410,1768258242543,-2000.0,0.00014916,2]
[401480412,1768258242553,-2000.0,0.00014916,2]
[401480415,1768258242562,-1113.36442406,0.00014916,2]
[401480416,1768258242571,-2000.0,0.00014916,2]
[401480419,1768258242580,-413.1580788,0.00015,2]
[401480420,1768258242590,-9041.2223334,0.00015246,2]
[401480422,1768258242599,-300.0,0.00015316,2]
[401480424,1768258242608,-1000.0,0.00015342,2]
[401480426,1768258242617,-1000.0,0.00015342,2]
[401480428,1768258242626,-1000.0,0.00015342,2]
[401480431,1768258242636,-1026.41190133,0.00015342,2]
[401480433,1768258242645,-1648.74912763,0.00015342,2]
[401480434,1768258242654,-500.7387933,0.00015342,2]
[401480437,1768258242663,-500.0,0.00015342,2]
[401480439,1768258242672,-737.22168392,0.00015342,2]
[401480441,1768258242681,-2000.0,0.00015342,2]
[401480443,1768258242691,-2000.0,0.00015342,2]
[401480445,1768258242700,-2000.0,0.00015342,2]
[401480447,1768258242710,-2000.0,0.00015342,2]
[401480449,1768258242719,-967.72472625,0.00015342,2]
[401480451,1768258242728,-2000.0,0.00015342,2]
[401480462,1768258242823,-2000.0,0.00015342,2]
[401480464,1768258242832,-500.0,0.00015342,2]
[401480466,1768258242842,-507.57819343,0.00015342,2]
[401480468,1768258242851,-517.83301398,0.00015342,2]
[401480470,1768258242860,-2000.0,0.00015342,2]
[401480472,1768258242869,-2000.0,0.00015342,2]
[401480474,1768258242879,-2000.0,0.00015342,2]
[401480476,1768258242888,-2000.0,0.00015342,2]
[401480478,1768258242898,-2500.0,0.00015464,2]
[401480480,1768258242908,-2500.0,0.00015464,2]
[401480482,1768258242917,-2500.0,0.00015464,2]
[401480483,1768258242927,-374.68815725,0.00015464,2]
[401480486,1768258242943,-2500.0,0.00015464,2]
[401480488,1768258242952,-2500.0,0.00015464,2]
[401480490,1768258242965,-2500.0,0.00015464,2]
[401480491,1768258242974,-2500.0,0.00015464,2]
[401480493,1768258242984,-1397.40421659,0.00015464,2]
[401480495,1768258242993,-2500.0,0.00015464,2]
[401480498,1768258243004,-2500.0,0.00015464,2]
[401480500,1768258243014,-587.0,0.00015479,2]
[401480502,1768258243023,-2283.0,0.00015569,2]
[401480504,1768258243035,-2500.0,0.0001589,2]
[401480506,1768258243046,-202.30233565,0.0001589,2]
[401480508,1768258243055,-231.95532903,0.0001589,2]
[401480510,1768258243064,-1000.0,0.0001589,2]
[401480512,1768258243073,-1000.0,0.0001589,2]
[401480514,1768258243082,-1001.21372141,0.0001589,2]
[401480516,1768258243091,-1000.0,0.0001589,2]
[401480518,1768258243100,-2000.0,0.0001589,2]
[401480520,1768258243110,-2500.0,0.0001589,2]
[401480523,1768258243119,-1090.98190772,0.0001589,2]
[401480525,1768258243129,-500.0,0.00016,2]
[401480527,1768258243138,-864.0,0.00016006,2]
[401480529,1768258243147,-638.85906661,0.00016012,2]
[401480531,1768258243157,-2500.0,0.00016012,2]
[401480533,1768258243167,-3000.0,0.00016012,2]
[401480535,1768258243176,-3000.0,0.00016012,2]
[401480537,1768258243185,-500.0,0.00016012,2]
[401480539,1768258243195,-1664.74090695,0.00016012,2]
[401480541,1768258243204,-3000.0,0.00016012,2]
[401480543,1768258243214,-3000.0,0.00016012,2]
[401480545,1768258243225,-3000.0,0.00016012,2]
[401480547,1768258243234,-228.70879455,0.00016046,7]
[401480549,1768258243243,-404.59159063,0.00016147,2]
[401480551,1768258243252,-6095.52266173,0.00016275,2]
[401480553,1768258243263,-500.0,0.00016438,2]
[401480555,1768258243272,-500.0,0.00016438,2]
[401480557,1768258243281,-277.59258088,0.00016438,2]
[401480559,1768258243291,-500.0,0.00016438,2]
[401480561,1768258243300,-3000.0,0.00016438,2]
[401480563,1768258243310,-1000.0,0.0001656,2]
[401480565,1768258243320,-3033.9237819,0.0001656,2]
[401480567,1768258243330,-3500.0,0.0001656,2]
[401480569,1768258243339,-2500.0,0.0001656,2]
[401480571,1768258243349,-823.0,0.00016978,2]
[401480573,1768258243359,-3500.0,0.00016986,2]
[401480575,1768258243369,-500.0,0.00017,2]
[401480577,1768258243380,-2844.5358916,0.00017079,2]
[401480579,1768258243389,-1041.66666667,0.00017092,2]
[401480581,1768258243399,-1000.0,0.00017108,2]
[401480583,1768258243408,-5000.0,0.00017412,2]
[401480585,1768258243419,-2844.5358916,0.00017416,2]
[401480588,1768258243429,-1012.33286536,0.00017534,2]
[401480590,1768258243439,-1000.0,0.00017606,2]
[401480592,1768258243448,-2844.5358916,0.00017796,2]
[401480594,1768258243458,-2844.5358916,0.00017819,2]
[401480596,1768258243467,-1000.0,0.00018,2]
[401480598,1768258243476,-458.14047762,0.00018147,2]
[401480600,1768258243485,-2844.5358916,0.00018234,2]
[401480602,1768258243495,-728.0,0.0001835,2]
[401480604,1768258243504,-2844.5358916,0.00018434,2]
[401480606,1768258243514,-628.0,0.00018556,2]
[401480608,1768258243523,-2147.0,0.00018556,2]
[401480610,1768258243532,-1366.0,0.00018556,2]
[401480612,1768258243541,-417.0,0.00018556,2]
[401480614,1768258243551,-715.0,0.00018556,2]
[401480616,1768258243560,-1152.0,0.00018622,2]
[401480618,1768258243569,-728.0,0.0001867,2]
[401480620,1768258243578,-2844.5358916,0.00018839,2]
[401480622,1768258243587,-181.08010149,0.00018856,2]
[401480624,1768258243596,-187.78006525,0.00018856,2]
[401480626,1768258243605,-194.72792766,0.00018856,2]
[401480628,1768258243615,-201.93286099,0.00018856,2]
[401480630,1768258243624,-209.40437684,0.00018856,2]
[401480632,1768258243633,-496.47127164,0.00018856,2]
[401480634,1768258243642,-217.15233878,0.00018856,2]
[401480636,1768258243651,-225.18697532,0.00018856,2]
[401480638,1768258243660,-233.51889341,0.00018856,2]
[401480640,1768258243669,-242.15909246,0.00018856,2]
[401480642,1768258243679,-2398.4119403,0.00018856,2]
[401480644,1768258243689,-251.11897888,0.00018856,2]
[401480646,1768258243698,-260.4103811,0.00018856,2]
[401480648,1768258243707,-270.0455652,0.00018856,2]
[401480650,1768258243716,-280.03725112,0.00018856,2]
[401480652,1768258243726,-290.39862941,0.00018856,2]
[401480654,1768258243735,-301.1433787,0.00018856,2]
[401480656,1768258243744,-303.10001603,0.000189,2]
[401480658,1768258243754,-303.10001603,0.000189,2]
[401480660,1768258243763,-268.88693948,0.00018989,2]
[401480662,1768258243772,-1000.0,0.00019,2]
[401480664,1768258243781,-151.0,0.00019019,2]
[401480666,1768258243790,-303.10001603,0.00019089,2]
[401480668,1768258243799,-303.10001603,0.00019089,2]
[401480670,1768258243808,-22054.27741379,0.0001911,3]
[401480672,1768258243818,-2844.5358916,0.00019134,2]
[401480674,1768258243826,-800.0,0.00019161,2]
[401480676,1768258243835,-200.0,0.00019172,2]
[401480678,1768258243844,-352.88,0.00019178,2]
[401480680,1768258243854,-564.47210763,0.00019189,2]
[401480682,1768258243863,-800.0,0.00019195,2]
[401480684,1768258243872,-17700.54,0.000192,2]
[401480686,1768258243881,-13357.57180481,0.00019225,2]
[401480688,1768258243890,-2844.53589163,0.00019239,2]
[401480690,1768258243898,-800.0,0.00019247,2]
[401480692,1768258243908,-600.0,0.00019248,2]
[401480694,1768258243916,-800.0,0.0001925,2]
[401480696,1768258243925,-800.0,0.00019251,2]
[401480697,1768258243934,-800.0,0.00019252,2]
[401480699,1768258243943,-800.0,0.00019265,2]
[401480702,1768258243952,-303.10001603,0.00019278,2]
[401480704,1768258243966,-151.55000804,0.00019278,2]
[401480706,1768258243975,-728.0,0.0001931,2]
[401480708,1768258243984,-800.0,0.00019319,2]
[401480710,1768258243993,-800.0,0.00019325,2]
[401480712,1768258244003,-169525.549144,0.00019325,2]
[401480713,1768258244011,-151.0,0.00019325,2]
[401480715,1768258244021,-800.0,0.00019351,2]
[401480717,1768258244030,-1506.49548668,0.00019351,2]
[401480719,1768258244041,-728.0,0.00019354,2]
[401480721,1768258244050,-728.0,0.00019358,2]
[401480723,1768258244059,-162.0,0.00019358,2]
[401480725,1768258244068,-1000.0,0.00019367,2]
[401480727,1768258244077,-244.0,0.00019367,2]
[401480729,1768258244086,-800.0,0.00019368,2]
[401480731,1768258244095,-800.0,0.0001937,2]
[401480733,1768258244104,-800.0,0.00019388,2]
[401480735,1768258244113,-800.0,0.000194,2]
[401480737,1768258244122,-3489.0945461,0.00019404,2]
[401480739,1768258244131,-1162.9581496,0.00019404,2]
[401480741,1768258244140,-51545.3386692,0.00019404,2]
[401480743,1768258244150,-514.84070869,0.00019404,2]
[401480745,1768258244159,-2487.15318209,0.00019404,2]
[401480747,1768258244168,-800.0,0.00019431,2]
[401480749,1768258244177,-151.0,0.00019449,2]
[401480751,1768258244186,-728.0,0.0001945,2]
[401480753,1768258244195,-303.10001603,0.00019467,2]
[401480755,1768258244204,-800.0,0.00019489,2]
[401480757,1768258244213,-153.37359093,0.0001952,2]
[401480759,1768258244222,-1112.92148416,0.00019551,2]
[401480761,1768258244232,-728.0,0.0001963,2]
[401480763,1768258244241,-151.0,0.00019637,2]
[401480765,1768258244250,-6095.52266173,0.00019651,2]
[401480767,1768258244259,-303.10001603,0.00019656,2]
[401480769,1768258244267,-250.0,0.00019726,2]
[401480771,1768258244277,-251.09924778,0.00019755,21]
[401480773,1768258244286,-454.65002405,0.00019845,4]
[401480775,1768258244295,-160.0,0.00019863,3]
[401480777,1768258244304,-347.0,0.00019878,2]
[401480779,1768258244313,-152.0,0.00019878,2]
[401480781,1768258244322,-154.66138278,0.00019878,2]
[401480782,1768258244331,-166.0,0.00019878,2]
[401480784,1768258244340,-152.0,0.00019878,2]
[401480786,1768258244349,-337.0,0.00019878,2]
[401480789,1768258244359,-347.0,0.00019878,2]
[401480791,1768258244368,-152.0,0.00019878,2]
[401480792,1768258244378,-337.0,0.00019878,2]
[401480794,1768258244387,-347.0,0.00019878,2]
[401480796,1768258244396,-166.0,0.00019878,2]
[401480798,1768258244405,-152.0,0.00019878,2]
[401480801,1768258244415,-337.0,0.00019878,2]
[401480802,1768258244425,-347.0,0.00019878,2]
[401480804,1768258244435,-166.0,0.00019878,2]
[401480806,1768258244444,-151.0,0.00019878,2]
[401480808,1768258244453,-152.0,0.00019878,2]
[401480810,1768258244463,-337.0,0.00019878,2]
[401480812,1768258244472,-347.0,0.00019878,2]
[401480814,1768258244481,-166.0,0.00019878,2]
[401480816,1768258244490,-152.0,0.00019878,2]
[401480818,1768258244499,-151.0,0.00019878,2]
[401480820,1768258244509,-337.0,0.00019878,2]
[401480822,1768258244518,-347.0,0.00019878,2]
[401480824,1768258244527,-166.0,0.00019878,2]
[401480826,1768258244537,-152.0,0.00019878,2]
[401480828,1768258244546,-347.0,0.00019878,2]
[401480830,1768258244555,-166.0,0.00019878,2]
[401480832,1768258244565,-151.0,0.00019878,2]
[401480834,1768258244574,-337.0,0.00019878,2]
[401480836,1768258244583,-152.0,0.00019878,2]
[401480838,1768258244592,-347.0,0.00019878,2]
[401480840,1768258244602,-166.0,0.00019878,2]
[401480842,1768258244610,-337.0,0.00019878,2]
[401480844,1768258244619,-298.51382573,0.00019878,2]
[401480846,1768258244628,-347.0,0.00019878,2]
[401480848,1768258244638,-151.0,0.00019878,2]
[401480850,1768258244650,-172.0,0.00019878,2]
[401480852,1768258244659,-337.0,0.00019878,2]
[401480854,1768258244670,-347.0,0.00019878,2]
[401480856,1768258244680,-337.0,0.00019878,2]
[401480858,1768258244689,-347.0,0.00019878,2]
[401480860,1768258244699,-151.0,0.00019878,2]
[401480862,1768258244708,-337.0,0.00019878,2]
[401480864,1768258244717,-151.0,0.00019878,2]
[401480866,1768258244727,-347.0,0.00019878,2]
[401480868,1768258244737,-151.0,0.00019878,2]
[401480870,1768258244746,-337.0,0.00019878,2]
[401480872,1768258244755,-151.0,0.00019878,2]
[401480874,1768258244765,-347.0,0.00019878,2]
[401480876,1768258244774,-151.0,0.00019878,2]
[401480878,1768258244784,-337.0,0.00019878,2]
[401480880,1768258244793,-151.0,0.00019878,2]
[401480882,1768258244803,-347.0,0.00019878,2]
[401480884,1768258244812,-337.0,0.00019878,2]
[401480886,1768258244821,-151.0,0.00019878,2]
[401480888,1768258244831,-347.0,0.00019878,2]
[401480890,1768258244840,-337.0,0.00019878,2]
[401480892,1768258244849,-151.0,0.00019878,2]
[401480894,1768258244858,-347.0,0.00019878,2]
[401480896,1768258244867,-151.0,0.00019878,2]
[401480898,1768258244877,-337.0,0.00019878,2]
[401480900,1768258244886,-151.0,0.00019878,2]
[401480902,1768258244896,-337.0,0.00019878,2]
[401480904,1768258244906,-347.0,0.00019878,2]
[401480906,1768258244918,-151.0,0.00019878,2]
[401480908,1768258244928,-347.0,0.00019878,2]
[401480910,1768258244938,-151.0,0.00019878,2]
[401480912,1768258244948,-151.0,0.00019878,2]
[401480914,1768258244957,-337.0,0.00019878,2]
[401480926,1768258245053,-347.0,0.00019878,2]
[401480928,1768258245075,-199.32099567,0.00019878,2]
[401480930,1768258245084,-337.0,0.00019878,2]
[401480933,1768258245094,-347.0,0.00019878,2]
[401480934,1768258245103,-337.0,0.00019878,2]
[401480936,1768258245112,-151.0,0.00019878,2]
[401480938,1768258245122,-337.0,0.00019878,2]
[401480940,1768258245131,-347.0,0.00019878,2]
[401480942,1768258245141,-337.0,0.00019878,2]
[401480944,1768258245150,-347.0,0.00019878,2]
[401480946,1768258245160,-151.0,0.00019878,2]
[401480948,1768258245169,-337.0,0.00019878,2]
[401480950,1768258245178,-347.0,0.00019878,2]
[401480952,1768258245188,-151.0,0.00019878,2]
[401480954,1768258245198,-337.0,0.00019878,2]
[401480956,1768258245207,-347.0,0.00019878,2]
[401480958,1768258245216,-151.0,0.00019878,2]
[401480960,1768258245226,-347.0,0.00019878,2]
[401480962,1768258245235,-337.0,0.00019878,2]
[401480964,1768258245244,-347.0,0.00019878,2]
[401480966,1768258245253,-337.0,0.00019878,2]
[401480968,1768258245262,-347.0,0.00019878,2]
[401480970,1768258245272,-151.0,0.00019878,2]
[401480972,1768258245281,-337.0,0.00019878,2]
[401480974,1768258245291,-347.0,0.00019878,2]
[401480976,1768258245300,-337.0,0.00019878,2]
[401480978,1768258245309,-151.0,0.00019878,2]
[401480980,1768258245319,-337.0,0.00019878,2]
[401480982,1768258245328,-347.0,0.00019878,2]
[401480984,1768258245337,-151.0,0.00019878,2]
[401480987,1768258245347,-337.0,0.00019878,2]
[401480989,1768258245356,-347.0,0.00019878,2]
[401480991,1768258245366,-416.19601909,0.00019878,2]
[401480992,1768258245375,-347.0,0.00019878,2]
[401480994,1768258245384,-151.0,0.00019878,2]
[401480997,1768258245394,-347.0,0.00019878,2]
[401480998,1768258245403,-347.0,0.00019878,2]
[401481001,1768258245412,-151.0,0.00019878,2]
[401481002,1768258245422,-151.0,0.00019878,2]
[401481004,1768258245431,-151.0,0.00019878,2]
[401481006,1768258245441,-214.08732261,0.00019878,2]
[401481008,1768258245451,-151.0,0.00019879,2]
[401481011,1768258245460,-281.0,0.000199,2]
[401481013,1768258245470,-778.0,0.000199,2]
[401481014,1768258245479,-511.41371224,0.0001995,2]
[401481017,1768258245489,-2045.65484897,0.0001995,2]
[401481018,1768258245498,-505.7283708,0.0001995,2]
[401481020,1768258245507,-2022.91348319,0.0001995,2]
[401481023,1768258245518,-4598.12068678,0.0001995,2]
[401481024,1768258245527,-4547.00378185,0.0001995,2]
[401481027,1768258245536,-716.69214305,0.0001995,2]
[401481029,1768258245545,-573593.40388209,0.0001995,2]
[401481050,1768258245745,-3406.51793685,0.0001995,2]
[401481104,1768258246478,-500.0,0.00012868,2]
[401481106,1768258246487,-500.0,0.00012868,2]
[401481108,1768258246496,-500.0,0.00012868,2]
[401481110,1768258246505,-500.0,0.00012868,2]
[401481112,1768258246515,-500.0,0.00012868,2]
[401481114,1768258246524,-500.0,0.00012868,2]
[401481117,1768258246534,-500.0,0.00012868,2]
[401481120,1768258246543,-500.0,0.00012868,2]
[401481123,1768258246552,-500.0,0.00012868,2]
[401481126,1768258246562,-2786.494888,0.00013699,2]
[401481128,1768258246571,-2726.14245173,0.0001995,2]